bitfinex-derivatives/quotes_ETHF0:USTF0_20250518
["timestamp","ask_amount","ask_price","bid_price","bid_amount"]
[1747563477221,6.58458003,2512.7,2512.6,4.00352]
[1747563478116,3.52658003,2512.7,2512.6,4.00352]
[1747563478427,3.52658003,2512.7,2512.6,5.21167272]
[1747563478721,3.52658003,2512.7,2512.6,4.41595272]
[1747563479023,3.4344,2512.7,2512.6,4.41595272]
[1747563479226,6.4924,2512.7,2512.6,4.41595272]
[1747563479925,6.58458003,2512.7,2512.6,4.41595272]
[1747563480222,23.82696003,2512.7,2512.3,1.59173035]
[1747563480422,4.0036,2512.4,2512.3,1.59173035]
[1747563480625,0.79586,2512.2,2512.1,2.38759553]
[1747563480825,8.63686,2512.2,2512.1,2.38759553]
[1747563481125,11.69486,2512.2,2512.1,2.38759553]
[1747563481321,12.99796,2512.2,2512.1,2.38759553]
[1747563481727,19.19184,2512.2,2511.4,7.18712588]
[1747563481919,0.79608,2511.6,2511.5,0.79607]
[1747563482119,0.79604,2511.7,2511.6,0.79604]
[1747563482826,2.11589,2511.8,2511.7,0.79602]
[1747563484223,5.17389,2511.8,2511.7,0.79602]
[1747563484421,4.3779,2511.8,2511.7,0.79602]
[1747563484823,3.058,2511.8,2511.7,0.79602]
[1747563485120,3.2078,2512.2,2512.1,0.79589]
[1747563485925,3.2078,2512.2,2511.8,1.2856]
[1747563486129,0.6302,2512.1,2512.0,0.79593]
[1747563486620,6.2658,2512.2,2512.1,0.79589]
[1747563488624,6.2658,2512.2,2512.0,0.79591]
[1747563488820,0.79594,2512.0,2511.9,0.79594]
[1747563489428,1.44752,2512.1,2512.0,0.79593]
[1747563490029,0.6516,2512.1,2512.0,0.79593]
[1747563490229,3.7096,2512.1,2512.0,0.79593]
[1747563492230,4.50549,2512.1,2512.0,0.79593]
[1747563492535,3.7096,2512.1,2512.0,0.79593]
[1747563494625,4.50549,2512.1,2512.0,0.79593]
[1747563496333,3.7096,2512.1,2512.0,0.79593]
[1747563498838,4.50549,2512.1,2512.0,0.79593]
[1747563499241,4.50749,2512.1,2512.0,0.79593]
[1747563499541,0.79595,2512.0,2511.9,0.79593]
[1747563500140,3.85395,2512.0,2511.9,0.79593]
[1747563500341,5.20035,2512.0,2511.9,0.79593]
[1747563500536,5.20035,2512.0,2511.6,3.8335]
[1747563500734,0.79601,2511.8,2511.7,0.796]
[1747563501036,2.79718,2511.9,2511.8,0.79599]
[1747563502242,5.85518,2511.9,2511.8,0.79599]
[1747563503328,5.0592,2511.9,2511.8,0.79599]
[1747563503728,4.4044,2511.9,2511.8,0.79599]
[1747563504135,1.3464,2511.9,2511.8,0.79599]
[1747563504741,1.3464,2511.9,2511.8,2.16029]
[1747563505137,0.6536,2512.1,2512.0,0.79593]
[1747563505333,1.9747,2512.1,2512.0,0.79593]
[1747563505840,1.3231,2512.1,2512.0,2.10183]
[1747563506139,0.002,2512.1,2512.0,2.10183]
[1747563507245,0.669,2512.5,2512.4,0.7958]
[1747563507546,0.6676,2512.6,2512.5,0.79577]
[1747563507736,1.9887,2512.6,2512.5,0.79577]
[1747563508231,1.3211,2512.6,2512.5,0.79577]
[1747563519246,2.11684,2512.6,2512.5,0.79577]
[1747563519431,0.79578,2512.5,2512.4,0.79578]
[1747563519636,2.09428,2512.5,2512.4,0.79578]
[1747563520138,5.15228,2512.5,2512.4,0.79578]
[1747563525344,5.80838,2512.5,2512.4,0.79578]
[1747563525750,5.0126,2512.5,2512.4,0.79578]
[1747563526944,4.3565,2512.5,2512.4,0.79578]
[1747563527245,1.2985,2512.5,2512.4,0.79578]
[1747563527753,1.2985,2512.5,2512.4,2.15258]
[1747563529954,0.79581,2512.4,2512.3,0.7958]
[1747563530151,1.44571,2512.4,2512.3,0.7958]
[1747563530453,0.6499,2512.4,2511.9,3.2078]
[1747563530646,0.79591,2512.1,2512.0,0.7959]
[1747563530846,1.8933,2512.3,2511.9,3.2078]
[1747563531047,1.2536,2512.0,2511.9,3.2078]
[1747563531257,1.2536,2512.0,2511.9,4.00376]
[1747563532049,1.2536,2512.0,2511.9,5.1529414]
[1747563532250,4.3116,2512.0,2511.9,5.1529414]
[1747563534152,1.2536,2512.0,2511.9,5.1529414]
[1747563534456,0.6397,2512.3,2512.2,0.79586]
[1747563534650,1.268,2512.3,2512.2,0.79586]
[1747563535153,4.326,2512.3,2512.2,0.79586]
[1747563535955,5.6332,2512.3,2512.2,0.79586]
[1747563536151,2.5752,2512.3,2512.2,0.79586]
[1747563536744,3.37103,2512.3,2512.2,0.79586]
[1747563538158,6.42903,2512.3,2512.2,0.79586]
[1747563539257,3.37103,2512.3,2512.2,0.79586]
[1747563540456,0.79588,2512.2,2512.1,0.79586]
[1747563540651,0.79593,2512.1,2512.0,0.7959]
[1747563541351,3.85393,2512.1,2512.0,0.7959]
[1747563541656,5.16763,2512.1,2512.0,0.7959]
[1747563542354,4.3717,2512.1,2512.0,0.7959]
[1747563544262,1.3137,2512.1,2512.0,1.4657]
[1747563544554,1.3137,2512.1,2512.0,2.7556]
[1747563544959,1.3137,2512.1,2512.0,3.90563709]
[1747563545960,1.40588003,2512.1,2512.0,3.90563709]
[1747563546251,1.40588003,2512.1,2512.0,2.61573709]
[1747563546458,1.40588003,2512.1,2512.0,1.4657]
[1747563546859,1.3137,2512.1,2512.0,1.4657]
[1747563547153,1.3137,2512.1,2512.0,0.7959]
[1747563548761,2.10959,2512.1,2512.0,0.7959]
[1747563549263,4.3717,2512.1,2512.0,0.7959]
[1747563550055,4.46388003,2512.1,2512.0,0.7959]
[1747563550257,1.40588003,2512.1,2512.0,1.4756]
[1747563550955,1.3137,2512.1,2512.0,1.4756]
[1747563551155,4.3717,2512.1,2512.0,1.4756]
[1747563551363,3.058,2512.1,2512.0,1.4756]
[1747563551561,3.058,2512.1,2512.0,2.15]
[1747563552255,1.268,2512.3,2512.2,0.79586]
[1747563552765,2.06383,2512.3,2512.2,0.79586]
[1747563552953,2.06383,2512.3,2512.1,0.79588]
[1747563552954,0.79589,2512.2,2512.1,0.79588]
[1747563553160,3.85389,2512.2,2512.1,0.79588]
[1747563553966,3.94607003,2512.2,2512.1,0.79588]
[1747563555067,3.85389,2512.2,2512.1,0.79588]
[1747563556268,3.058,2512.2,2511.7,1.87812068]
[1747563556471,0.79599,2511.8,2511.7,1.98753068]
[1747563557373,3.85399,2511.8,2511.7,1.98753068]
[1747563559367,3.058,2511.8,2511.7,1.98753068]
[1747563559581,3.058,2511.8,2511.7,0.79601]
[1747563560971,3.85399,2511.8,2511.7,0.79601]
[1747563565377,0.79608,2511.6,2511.5,0.79606]
[1747563566268,3.058,2511.6,2511.5,0.79606]
[1747563566971,3.6837,2511.6,2511.5,0.79606]
[1747563570379,4.9952,2511.6,2511.5,0.79606]
[1747563570686,3.058,2511.6,2511.5,0.79606]
[1747563571281,1.3115,2511.8,2511.7,0.79602]
[1747563572088,4.3695,2511.8,2511.7,0.79602]
[1747563573882,4.3695,2511.8,2511.7,2.13602]
[1747563576194,1.3115,2511.8,2511.7,2.13602]
[1747563576385,1.40368003,2511.8,2511.7,2.13602]
[1747563579084,2.08858003,2511.8,2511.7,0.79602]
[1747563580188,1.40368003,2511.8,2511.7,2.06242]
[1747563580388,1.3115,2511.8,2511.7,2.06242]
[1747563581694,3.2078,2512.1,2512.0,0.79593]
[1747563581894,4.5037,2512.1,2512.0,0.79593]
[1747563582197,8.35759,2512.1,2512.0,0.79593]
[1747563584289,0.796,2511.8,2511.7,0.79598]
[1747563584489,1.2959,2512.0,2511.5,2.63996]
[1747563584695,8.25555,2512.1,2511.5,10.45796]
[1747563584895,0.79597,2511.9,2511.8,0.79595]
[1747563585596,0.79601,2511.8,2511.7,0.796]
[1747563585796,1.48511,2511.8,2511.7,0.796]
[1747563586291,3.7471,2511.8,2511.7,1.94656208]
[1747563586596,3.83928003,2511.8,2511.7,1.94656208]
[1747563586796,4.46078003,2511.8,2511.7,1.94656208]
[1747563586998,5.25677003,2511.8,2511.7,1.94656208]
[1747563587199,5.25677003,2511.8,2511.7,1.15056208]
[1747563587497,5.25677003,2511.8,2511.7,1.94658208]
[1747563587694,5.25677003,2511.8,2511.7,1.15056208]
[1747563588096,5.25677003,2511.8,2511.7,1.94658208]
[1747563588502,5.25677003,2511.8,2511.7,1.15056208]
[1747563589000,5.25677003,2511.8,2511.7,1.94658208]
[1747563589900,5.25677003,2511.8,2511.7,0.79602]
[1747563590496,0.79605,2511.6,2511.5,1.98759068]
[1747563590701,0.79605,2511.6,2511.5,1.19152068]
[1747563590898,0.79612,2511.4,2511.3,1.58631839]
[1747563591194,0.79612,2511.4,2510.9,3.16919171]
[1747563591195,0.79624,2511.0,2510.9,3.16919171]
[1747563591502,11.82304,2511.0,2510.9,3.16919171]
[1747563592098,0.79634,2510.7,2510.6,1.32167264]
[1747563592904,4.00414,2510.7,2510.6,2.11804264]
[1747563593099,7.06214,2510.7,2510.6,2.11804264]
[1747563593298,6.2658,2510.7,2510.6,2.11804264]
[1747563593903,7.5451,2510.7,2510.6,2.11804264]
[1747563595308,8.34144,2510.7,2510.6,2.11804264]
[1747563595608,7.5451,2510.7,2510.6,2.11804264]
[1747563596309,4.4871,2510.7,2510.6,2.11804264]
[1747563596908,4.4871,2510.7,2510.6,0.79637]
[1747563599606,3.058,2510.8,2510.7,0.79634]
[1747563599912,3.058,2510.8,2510.7,2.72694]
[1747563600111,7.822,2511.1,2511.0,0.79624]
[1747563600607,8.61821,2511.1,2511.0,0.79624]
[1747563601104,10.88,2511.1,2511.0,0.79624]
[1747563601511,11.67621,2511.1,2511.0,0.79624]
[1747563601715,12.96811,2511.1,2511.0,0.79624]
[1747563603013,12.1719,2511.1,2511.0,0.79624]
[1747563604118,12.96811,2511.1,2511.0,0.79624]
[1747563605915,12.1719,2511.1,2511.0,0.79624]
[1747563606113,3.058,2511.1,2511.0,0.79624]
[1747563606306,1.281,2511.3,2511.2,0.79618]
[1747563606517,3.2078,2511.4,2511.3,0.79615]
[1747563607210,7.5468,2511.4,2511.3,0.79615]
[1747563607922,4.339,2511.4,2511.3,0.79615]
[1747563608420,1.281,2511.4,2511.3,0.79615]
[1747563609225,4.339,2511.4,2511.3,0.79615]
[1747563610426,4.339,2511.4,2510.9,3.2078]
[1747563610730,3.41696,2511.3,2511.2,0.79618]
[1747563611225,0.79622,2511.1,2511.0,0.79622]
[1747563611427,1.2848,2511.2,2510.9,3.2078]
[1747563611726,2.081,2511.2,2511.1,0.79621]
[1747563612126,1.99053,2511.1,2510.6,3.2078]
[1747563612427,0.79631,2510.8,2510.7,0.79631]
[1747563612724,4.00411,2510.8,2510.7,0.79631]
[1747563613127,7.06211,2510.8,2510.7,0.79631]
[1747563613325,9.06231,2510.8,2510.7,0.79631]
[1747563614428,8.266,2510.8,2510.7,0.79631]
[1747563614724,5.0582,2510.8,2510.7,0.79631]
[1747563616236,2.0002,2510.8,2510.7,0.79631]
[1747563616449,7.817,2511.2,2511.1,0.7962]
[1747563616746,7.817,2511.2,2510.7,1.99081]
[1747563616747,0.79622,2511.1,2511.0,0.79622]
[1747563616948,0.79625,2511.0,2510.9,0.79625]
[1747563618046,0.79629,2510.9,2510.8,0.79628]
[1747563618247,0.79632,2510.8,2510.7,0.79631]
[1747563618542,2.70392,2510.8,2510.7,0.79631]
[1747563619149,0.79635,2510.7,2510.6,0.79634]
[1747563619343,2.05555,2510.7,2510.6,0.79634]
[1747563619746,1.2592,2510.7,2510.6,0.79634]
[1747563620244,4.3172,2510.7,2510.6,0.79634]
[1747563622750,0.79641,2510.5,2510.4,0.7964]
[1747563623048,4.3172,2510.7,2510.2,3.2078]
[1747563623251,4.3172,2510.7,2510.3,0.79646]
[1747563623252,2.78753,2510.4,2510.3,0.79646]
[1747563624253,5.84553,2510.4,2510.3,0.79646]
[1747563624458,0.79646,2510.3,2510.2,4.00427]
[1747563624646,2.0074,2510.3,2510.2,4.00427]
[1747563625251,5.0654,2510.3,2510.2,4.00427]
[1747563626452,5.86186,2510.3,2510.2,4.00427]
[1747563627456,0.7965,2510.2,2510.1,0.7965]
[1747563627648,2.1236,2510.2,2510.1,0.7965]
[1747563628351,5.1816,2510.2,2510.1,0.7965]
[1747563630555,4.3851,2510.2,2509.8,3.2078]
[1747563630743,0.79659,2509.9,2509.8,4.00441]
[1747563630943,0.79659,2509.9,2509.8,4.00442]
[1747563631152,3.85459,2509.9,2509.8,4.00442]
[1747563631649,5.0025,2509.9,2509.8,4.00442]
[1747563632459,5.79909,2509.9,2509.8,4.00442]
[1747563632758,5.0025,2509.9,2509.8,4.00442]
[1747563632947,5.79909,2509.9,2509.8,4.00442]
[1747563633253,5.0025,2509.9,2509.8,4.00442]
[1747563635256,5.09468003,2509.9,2509.8,4.00442]
[1747563636254,5.0025,2509.9,2509.8,4.00442]
[1747563637758,3.058,2509.9,2509.8,4.00442]
[1747563638150,9.1981,2510.1,2510.0,0.79656]
[1747563638351,1.3781,2510.1,2510.0,0.79656]
[1747563638856,1.3781,2510.1,2510.0,2.07716]
[1747563641660,1.3781,2510.1,2510.0,0.79656]
[1747563643161,4.4361,2510.1,2510.0,0.79656]
[1747563643658,4.4361,2510.1,2510.0,2.09106]
[1747563644160,1.3781,2510.1,2510.0,2.09106]
[1747563645660,1.3781,2510.1,2510.0,2.76146]
[1747563648166,8.4837,2510.4,2510.3,0.79646]
[1747563648366,16.2987,2510.4,2510.3,0.79646]
[1747563649168,3.7277,2510.4,2510.3,0.79646]
[1747563649367,3.058,2510.4,2510.3,0.79646]
[1747563649767,3.058,2510.4,2510.3,2.12196]
[1747563650369,1.287,2510.5,2510.4,0.79643]
[1747563650871,2.0834,2510.5,2510.4,0.79643]
[1747563651271,5.1414,2510.5,2510.4,0.79643]
[1747563652171,4.345,2510.5,2510.4,0.79643]
[1747563652970,5.1414,2510.5,2510.4,0.79643]
[1747563653173,4.345,2510.5,2510.4,0.79643]
[1747563654570,5.1414,2510.5,2510.4,0.79643]
[1747563655371,0.79646,2510.4,2510.3,0.79645]
[1747563655572,3.36736,2510.4,2510.3,0.79645]
[1747563656172,6.42536,2510.4,2510.3,0.79645]
[1747563656473,5.6289,2510.4,2510.0,1.9472]
[1747563656673,0.09218003,2510.1,2510.0,3.41966]
[1747563656974,1.36628003,2510.1,2510.0,3.41966]
[1747563657673,1.2741,2510.1,2510.0,3.41966]
[1747563658173,1.2741,2510.1,2510.0,4.54093277]
[1747563659478,1.2741,2510.1,2510.0,1.91783277]
[1747563659671,2.07063,2510.1,2510.0,1.91783277]
[1747563659872,2.75393,2510.1,2510.0,1.91783277]
[1747563660369,5.81193,2510.1,2510.0,0.79656]
[1747563660678,5.90411003,2510.1,2510.0,0.79656]
[1747563660879,5.10758003,2510.1,2510.0,0.79656]
[1747563661279,2.04958003,2510.1,2510.0,0.79656]
[1747563661679,1.9574,2510.1,2510.0,0.79656]
[1747563662775,3.7962738,2510.4,2510.3,0.79646]
[1747563663376,5.0454738,2510.4,2510.3,0.79646]
[1747563663877,3.1650738,2510.4,2510.3,0.79646]
[1747563664080,3.1650738,2510.4,2510.3,5.28526]
[1747563664385,3.1650738,2510.4,2510.3,17.78693562]
[1747563665383,1.2795,2510.7,2510.6,0.79637]
[1747563666279,1.2795,2510.7,2510.6,2.07737]
[1747563666975,1.2795,2510.7,2510.6,2.76437]
[1747563669283,1.2795,2510.7,2510.6,0.79637]
[1747563670181,4.3375,2510.7,2510.6,0.79637]
[1747563672477,3.058,2510.7,2510.6,0.79637]
[1747563673184,2.5642,2510.9,2510.8,0.79631]
[1747563673385,1.9064,2510.9,2510.8,0.79631]
[1747563674885,1.2689,2510.9,2510.8,0.79631]
[1747563676386,1.2689,2510.9,2510.8,0.79631]
[1747563680490,1.2689,2510.9,2510.8,4.00411]
[1747563681087,0.6709,2511.1,2511.0,0.79624]
[1747563681284,1.9919,2511.1,2511.0,0.79624]
[1747563681485,1.321,2511.1,2511.0,0.79624]
[1747563681786,9.1508,2511.4,2511.3,0.79615]
[1747563681984,10.5187,2511.4,2511.3,0.79615]
[1747563682279,13.5767,2511.4,2511.3,0.79615]
[1747563683186,5.7687,2511.4,2511.3,0.79615]
[1747563685078,6.56482,2511.4,2511.3,0.79615]
[1747563685283,5.7687,2511.4,2511.3,0.79615]
[1747563685480,10.7687,2511.4,2510.8,5.19854]
[1747563685780,3.2078,2511.2,2511.1,0.79618]
[1747563686293,6.2658,2511.2,2511.1,0.79618]
[1747563687287,3.058,2511.2,2511.1,0.79618]
[1747563688295,1.27,2511.3,2511.2,0.79618]
[1747563689297,7.5358,2511.3,2511.1,0.79619]
[1747563689596,0.79626,2511.0,2510.9,0.79626]
[1747563690094,7.808,2511.1,2510.8,4.00408]
[1747563690095,0.79627,2510.9,2510.8,4.00408]
[1747563690290,2.6363,2510.9,2510.6,1.1929018]
[1747563690496,0.79633,2510.8,2510.7,0.79633]
[1747563690688,2.14593,2510.8,2510.7,0.79633]
[1747563691183,4.4076,2510.8,2510.7,0.79633]
[1747563691796,5.20391,2510.8,2510.7,0.79633]
[1747563692099,9.4076,2510.8,2510.0,1.1929018]
[1747563692301,0.79646,2510.4,2510.3,0.79645]
[1747563692895,3.38676,2510.4,2510.3,0.79645]
[1747563693095,0.79648,2510.3,2510.2,0.79648]
[1747563693294,0.79651,2510.2,2510.1,0.79651]
[1747563694097,0.79653,2510.1,2510.0,1.1929018]
[1747563694488,7.15803,2510.1,2510.0,1.1929018]
[1747563694802,0.79659,2509.9,2509.7,0.79663]
[1747563695091,0.79666,2509.7,2509.6,0.79666]
[1747563695503,0.79669,2509.6,2509.5,0.7967]
[1747563695799,1.3615,2509.7,2509.6,0.79669]
[1747563697201,4.4195,2509.7,2509.6,0.79669]
[1747563698402,1.3615,2509.7,2509.6,0.79669]
[1747563701599,1.3615,2509.7,2509.3,6.51413]
[1747563701600,3.2078,2509.9,2509.8,0.79662]
[1747563701803,3.2078,2510.3,2510.2,0.7965]
[1747563702201,4.4936,2510.3,2510.2,0.7965]
[1747563704202,7.5516,2510.3,2510.2,0.7965]
[1747563705209,4.4936,2510.3,2510.2,0.7965]
[1747563706103,4.3438,2510.3,2510.2,0.7965]
[1747563707111,1.2858,2510.3,2510.2,0.7965]
[1747563708309,4.3438,2510.3,2510.2,0.7965]
[1747563710419,4.43598003,2510.3,2510.2,0.7965]
[1747563711604,4.3438,2510.3,2510.2,0.7965]
[1747563712511,4.43598003,2510.3,2510.2,0.7965]
[1747563713418,4.3438,2510.3,2510.2,0.7965]
[1747563714116,1.2858,2510.3,2510.2,0.7965]
[1747563714519,0.6374,2510.4,2510.3,0.79646]
[1747563714719,7.807,2510.6,2510.5,0.7964]
[1747563714915,0.79629,2510.9,2510.8,0.79627]
[1747563715115,3.85429,2510.9,2510.8,0.79627]
[1747563715822,3.058,2510.9,2510.8,0.79627]
[1747563716223,4.5491,2511.0,2510.9,0.79627]
[1747563716920,3.2078,2511.0,2510.9,0.79627]
[1747563717220,0.6555,2511.3,2511.2,0.79618]
[1747563717613,3.8127738,2511.4,2511.3,0.79615]
[1747563718233,6.8707738,2511.4,2511.3,0.79615]
[1747563719613,3.7057,2511.4,2511.3,0.79615]
[1747563720314,4.50182,2511.4,2511.3,0.79615]
[1747563721424,0.79622,2511.1,2511.0,0.79622]
[1747563721722,4.00402,2511.1,2511.0,0.79622]
[1747563722023,7.805,2511.2,2511.1,0.79621]
[1747563722320,10.863,2511.2,2511.1,0.79621]
[1747563724425,0.79626,2511.0,2510.6,10.424]
[1747563724625,0.6508,2510.9,2510.5,3.2078]
[1747563724819,0.79631,2510.8,2510.7,0.79632]
[1747563725327,4.5051,2510.9,2510.8,0.79631]
[1747563725624,0.79631,2510.8,2510.7,0.79632]
[1747563725824,0.79631,2510.8,2510.4,3.2078]
[1747563726028,3.7088,2510.9,2510.4,3.2078]
[1747563726029,0.79638,2510.6,2510.4,3.2078]
[1747563726322,0.79637,2510.6,2510.5,0.79638]
[1747563726724,8.60136,2510.7,2510.5,0.79638]
[1747563726915,11.0128,2510.7,2510.0,2.5153018]
[1747563727115,0.79638,2510.6,2510.0,1.1929018]
[1747563727414,11.65935,2510.7,2510.6,0.79637]
[1747563727916,10.863,2510.7,2510.6,0.79637]
[1747563729126,11.65934,2510.7,2510.6,0.79637]
[1747563730726,12.93854,2510.7,2510.6,0.79637]
[1747563732324,0.79643,2510.5,2510.4,0.79641]
[1747563732636,0.79639,2510.6,2510.5,0.79638]
[1747563733232,3.85439,2510.6,2510.5,0.79638]
[1747563734929,3.058,2510.6,2510.5,0.79638]
[1747563736231,11.0118,2510.8,2510.7,0.79634]
[1747563737225,14.0698,2510.8,2510.7,0.79634]
[1747563737532,6.2658,2510.8,2510.7,0.79634]
[1747563739235,3.2078,2510.8,2510.7,0.79634]
[1747563739720,15.52547,2511.0,2510.9,0.79627]
[1747563741736,0.79633,2510.8,2510.7,0.79632]
[1747563741935,0.7963,2510.9,2510.8,0.7963]
[1747563742137,12.46747,2511.0,2510.9,0.79627]
[1747563743136,15.52547,2511.0,2510.9,0.79627]
[1747563744033,14.7292,2511.0,2510.4,3.8357]
[1747563744230,0.79637,2510.7,2510.6,0.79634]
[1747563745230,3.85437,2510.7,2510.6,0.79634]
[1747563745537,4.51287,2510.7,2510.6,0.79634]
[1747563746033,3.7165,2510.7,2510.6,0.79634]
[1747563746337,4.51284,2510.7,2510.6,0.79634]
[1747563749248,0.79643,2510.4,2510.3,0.79645]
[1747563750038,1.48063,2510.4,2510.3,0.79645]
[1747563750226,1.48063,2510.4,2509.8,7.81306]
[1747563750227,6.95,2510.4,2509.8,7.81306]
[1747563750429,0.79654,2510.2,2510.1,0.79651]
[1747563750836,2.08674,2510.2,2510.1,0.79651]
[1747563751226,5.14474,2510.2,2510.1,0.79651]
[1747563752542,0.79656,2510.1,2510.0,0.79654]
[1747563752741,2.08476,2510.1,2510.0,0.79654]
[1747563753137,5.14276,2510.1,2510.0,0.79654]
[1747563753440,4.3462,2510.1,2510.0,0.79654]
[1747563753735,5.14273,2510.1,2510.0,0.79654]
[1747563755039,5.14273,2510.1,2509.8,3.869]
[1747563755040,0.79659,2510.0,2509.9,0.79658]
[1747563755243,0.79659,2509.9,2509.8,4.00442]
[1747563755438,1.333,2509.9,2509.8,4.00442]
[1747563755638,1.2837,2510.0,2509.9,0.79659]
[1747563756233,4.3417,2510.0,2509.9,0.79659]
[1747563758546,5.13826,2510.0,2509.9,0.79659]
[1747563759747,4.3417,2510.0,2509.9,0.79659]
[1747563760445,5.13826,2510.0,2509.9,0.79659]
[1747563760949,4.3417,2510.0,2509.9,0.79659]
[1747563763345,12.1477,2510.0,2509.9,0.79659]
[1747563764344,0.79661,2509.9,2509.8,0.79659]
[1747563764545,0.79665,2509.8,2509.7,0.79664]
[1747563764845,0.79667,2509.7,2509.6,0.79667]
[1747563765147,2.15137,2509.7,2509.6,0.79667]
[1747563765942,0.79671,2509.6,2509.5,0.7967]
[1747563766144,0.79678,2509.3,2509.2,1.1929018]
[1747563766344,0.79678,2509.3,2509.2,0.79681]
[1747563766543,4.00457,2509.4,2509.3,0.79678]
[1747563767437,3.2078,2509.4,2509.3,0.79678]
[1747563768544,4.00455,2509.4,2509.3,0.79678]
[1747563771046,0.79678,2509.3,2509.2,0.09218003]
[1747563771350,0.79681,2509.2,2509.1,0.79683]
[1747563771750,8.60181,2509.2,2509.1,0.79683]
[1747563772848,7.805,2509.2,2509.1,0.79683]
[1747563774249,8.60181,2509.2,2509.1,0.79683]
[1747563774755,7.805,2509.2,2509.1,0.79683]
[1747563775250,7.805,2509.2,2508.6,0.09218003]
[1747563775558,7.805,2509.2,2508.5,3.2078]
[1747563775559,0.79696,2508.8,2508.7,0.79696]
[1747563776351,0.79693,2508.9,2508.8,0.79693]
[1747563778259,1.47863,2508.9,2508.8,0.79693]
[1747563778759,0.79696,2508.8,2508.7,0.79695]
[1747563779754,0.79696,2508.8,2508.6,1.374]
[1747563780052,0.797,2508.6,2508.5,4.62573]
[1747563780649,2.0757,2508.6,2508.5,4.62573]
[1747563780859,1.2787,2508.6,2508.5,4.62573]
[1747563781660,2.0757,2508.6,2508.5,4.62573]
[1747563781860,1.2787,2508.6,2508.5,4.62573]
[1747563784265,2.0757,2508.6,2508.5,3.2078]
[1747563784765,12.2915,2508.6,2507.8,6.3938318]
[1747563784965,0.79713,2508.3,2508.2,0.79713]
[1747563785477,0.79715,2508.2,2508.1,0.79714]
[1747563785676,2.81263,2508.3,2508.2,0.79713]
[1747563785977,0.79714,2508.2,2508.1,0.79714]
[1747563786178,2.12564,2508.2,2508.1,0.79714]
[1747563786778,1.3285,2508.2,2508.1,0.79714]
[1747563787978,2.12563,2508.2,2508.1,0.79714]
[1747563788182,2.12563,2508.2,2507.9,1.9583]
[1747563788183,0.79717,2508.1,2508.0,0.79718]
[1747563788381,2.80607,2508.1,2508.0,0.79718]
[1747563789381,4.00183,2508.1,2507.7,0.6718]
[1747563789577,0.79728,2507.8,2507.7,0.79729]
[1747563789779,0.79725,2507.9,2507.8,0.79726]
[1747563789973,1.9414,2507.9,2507.6,0.6482]
[1747563790185,0.79726,2507.8,2507.7,0.79727]
[1747563790385,2.09466,2507.8,2507.7,0.79727]
[1747563790881,1.2974,2507.8,2507.7,0.79727]
[1747563792179,2.09466,2507.8,2507.7,0.79727]
[1747563792484,1.2974,2507.8,2507.7,0.79727]
[1747563795981,1.2974,2507.8,2507.7,2.10397]
[1747563796889,1.2974,2507.8,2507.7,0.79727]
[1747563797189,2.09466,2507.8,2507.7,0.79727]
[1747563797687,2.09467,2507.8,2507.7,0.79729]
[1747563798785,4.005,2508.0,2507.9,0.79723]
[1747563798981,3.2078,2508.0,2507.7,0.001]
[1747563799188,0.79726,2507.8,2507.7,0.79827]
[1747563799383,0.79726,2507.8,2507.7,0.001]
[1747563800787,0.79726,2507.8,2507.7,0.79829]
[1747563801388,0.79726,2507.8,2507.7,0.001]
[1747563802082,2.15936,2507.8,2507.7,0.001]
[1747563803889,2.15936,2507.8,2507.7,0.09318003]
[1747563804188,5.21736,2507.8,2507.7,0.09318003]
[1747563804785,5.21736,2507.8,2507.7,0.001]
[1747563804992,0.79742,2507.3,2507.2,0.79743]
[1747563805684,0.79742,2507.3,2507.0,5.1808]
[1747563805685,0.7974,2507.4,2507.3,0.79739]
[1747563805991,2.15889,2507.4,2507.3,0.79742]
[1747563807090,1.3615,2507.4,2507.3,0.79742]
[1747563807485,3.2078,2507.6,2507.5,0.79735]
[1747563807680,4.5652,2507.6,2507.5,0.79735]
[1747563808085,5.36255,2507.6,2507.4,0.79736]
[1747563808392,2.15375,2507.5,2507.4,0.6276]
[1747563808688,2.15375,2507.5,2507.3,0.7974]
[1747563808891,0.79735,2507.5,2507.3,0.7974]
[1747563809085,0.79735,2507.5,2507.4,0.79739]
[1747563809286,0.79739,2507.4,2507.3,3.8554]
[1747563809487,0.79739,2507.4,2507.3,3.058]
[1747563810294,0.7974,2507.4,2507.3,0.79741]
[1747563810497,0.79736,2507.5,2507.4,0.79737]
[1747563811393,0.79736,2507.5,2507.3,0.6482]
[1747563811394,0.79739,2507.4,2507.3,0.6482]
[1747563811586,2.09699,2507.4,2507.3,0.001]
[1747563817991,2.09699,2507.4,2507.3,0.09318003]
[1747563821686,9.90599,2507.4,2507.3,0.09318003]
[1747563821987,9.90599,2507.4,2507.3,0.89060003]
[1747563822189,10.58639,2507.4,2507.3,0.09318003]
[1747563823090,10.58639,2507.4,2507.3,0.001]
[1747563826384,2.09699,2507.4,2507.3,0.001]
[1747563826593,2.09699,2507.4,2507.3,1.3411]
[1747563827598,2.09699,2507.4,2507.3,0.001]
[1747563837101,5.15499,2507.4,2507.3,0.001]
[1747563842212,2.09699,2507.4,2507.3,0.001]
[1747563845312,5.15499,2507.4,2507.3,0.001]
[1747563846311,1.99366,2507.2,2506.3,1.99633]
[1747563846501,0.79758,2506.8,2506.6,1.9297]
[1747563846703,0.79758,2506.8,2506.7,4.498]